bitfinex-derivatives/quotes_SOLF0:USTF0_20250307
["timestamp","ask_amount","ask_price","bid_price","bid_amount"]
[1741322127174,47.11959958,141.83,141.73,18.83424103]
[1741322127374,7.0534,141.78,141.72,28.24]
[1741322127575,3.7594,141.82,141.73,18.83424103]
[1741322127770,22.59364103,141.82,141.73,18.83424103]
[1741322128082,7.0546,141.75,141.72,28.26]
[1741322128376,18.83424103,141.78,141.69,261.1]
[1741322128678,7.0555,141.73,141.72,0.05018346]
[1741322130374,7.0575,141.69,141.66,18.83424103]
[1741322130679,7.0575,141.69,141.65,32.1062]
[1741322130873,20.86144103,141.74,141.65,3.8862]
[1741322131074,20.86144103,141.74,141.64,18.83424103]
[1741322131381,18.83424103,141.72,141.63,261.02]
[1741322131584,0.04730652,141.7,141.68,0.04850783]
[1741322131980,18.88154755,141.7,141.61,30.2344]
[1741322132169,18.88154755,141.7,141.61,2.0344]
[1741322132375,18.83424103,141.7,141.61,2.0344]
[1741322132577,58.34781932,141.71,141.61,2.0344]
[1741322132774,7.0595,141.65,141.61,2.0344]
[1741322133081,7.0595,141.65,141.6,66.90675889]
[1741322133082,7.0595,141.65,141.6,38.70675889]
[1741322133284,7.0595,141.65,141.62,0.05261964]
[1741322133480,7.06,141.64,141.62,0.05261964]
[1741322133677,0.05140674,141.64,141.62,0.05261964]
[1741322135682,30.7805,141.73,141.63,28.1]
[1741322135983,7.0563,141.72,141.65,7.0594]
[1741322136479,7.0565,141.71,141.65,7.0594]
[1741322136784,0.05211768,141.7,141.67,0.04875979]
[1741322136985,0.05211768,141.7,141.67,7.10715979]
[1741322137278,0.05211768,141.7,141.67,0.04875979]
[1741322137482,0.05211768,141.7,141.67,28.86875979]
[1741322137783,0.05211768,141.7,141.67,35.92725979]
[1741322137978,0.05211768,141.7,141.67,28.86875979]
[1741322140678,28.82,141.78,141.67,59.01657911]
[1741322140983,5.8707,141.81,141.7,30.14781932]
[1741322141180,5.8707,141.81,141.71,28.86]
[1741322141883,0.04666988,141.77,141.75,0.04788402]
[1741322142282,7.0559,141.73,141.67,66.04621932]
[1741322142483,58.98781932,141.78,141.67,28.84]
[1741322142886,7.0569,141.71,141.67,28.84]
[1741322143385,28.84,141.74,141.67,28.84]
[1741322143386,7.10435464,141.7,141.68,0.0479012]
[1741322143588,0.04725464,141.7,141.68,0.0479012]
[1741322144478,7.0575,141.69,141.68,0.0479012]
[1741322145378,7.0575,141.69,141.68,1.2e-06]
[1741322154386,0.04725464,141.7,141.68,1.2e-06]
[1741322156582,1.926,141.79,141.69,47.38348419]
[1741322156782,20.74948419,141.79,141.69,47.38348419]
[1741322157194,18.82348419,141.77,141.69,28.56]
[1741322157381,18.82348419,141.75,141.67,2.0125]
[1741322157791,0.04616483,141.72,141.7,0.05054775]
[1741322158295,7.0565,141.71,141.7,0.05054775]
[1741322159189,7.10226483,141.72,141.7,0.05054775]
[1741322160390,7.0565,141.71,141.7,0.05054775]
[1741322161186,7.0579,141.69,141.63,58.58438157]
[1741322161392,28.46,141.72,141.63,28.46]
[1741322161586,28.46,141.72,141.62,30.4083]
[1741322161587,1.9629,141.71,141.62,30.4083]
[1741322161787,7.0589,141.67,141.62,30.4083]
[1741322162190,7.0589,141.67,141.62,37.4691]
[1741322162387,0.05194981,141.66,141.63,0.05036938]
[1741322163198,0.05194981,141.66,141.63,30.17475095]
[1741322163998,0.05194981,141.66,141.65,7.0595]
[1741322164200,3.9157,141.76,141.65,3.52]
[1741322164398,1.8998,141.76,141.67,30.12438157]
[1741322164594,7.0551,141.74,141.69,7.057]
[1741322164788,1.8998,141.76,141.68,28.4]
[1741322165191,7.10376899,141.73,141.71,0.04898682]
[1741322165898,0.04786899,141.73,141.71,0.04898682]
[1741322167701,0.04786899,141.73,141.72,28.3]
[1741322167895,1.9787,141.79,141.72,28.3]
[1741322168597,7.0539,141.77,141.72,28.3]
[1741322169004,0.04891022,141.76,141.73,0.05117856]
[1741322169208,1.9546,141.83,141.73,30.17556013]
[1741322169497,1.9546,141.83,141.73,34.05428157]
[1741322170196,1.9546,141.83,141.77,7.0531]
[1741322170396,0.05350879,141.79,141.77,0.04604678]
[1741322172100,0.05350879,141.79,141.78,7.053]
[1741322172302,7.0504,141.84,141.78,7.053]
[1741322172499,7.0506,141.83,141.77,7.09914678]
[1741322172703,1.9306,141.87,141.77,0.04604678]
[1741322172904,1.9306,141.87,141.76,58.42438157]
[1741322173102,7.05,141.84,141.79,7.0521]
[1741322173402,7.05,141.84,141.8,28.3]
[1741322173602,0.04969429,141.83,141.8,28.35035412]
[1741322173799,0.04969429,141.83,141.8,35.40225412]
[1741322173999,0.04969429,141.83,141.8,28.35035412]
[1741322174398,0.04969429,141.83,141.8,0.05035412]
[1741322175406,7.0515,141.81,141.8,0.05035412]
[1741322176408,7.0515,141.81,141.8,5.412e-05]
[1741322177698,9.042,141.81,141.8,5.412e-05]
[1741322179399,7.0515,141.81,141.8,5.412e-05]
[1741322180603,7.0511,141.82,141.8,5.412e-05]
[1741322181411,7.0515,141.81,141.8,5.412e-05]
[1741322182405,0.04969429,141.83,141.8,5.412e-05]
[1741322182608,32.4712,141.93,141.81,28.54]
[1741322182911,7.0486,141.87,141.81,35.5914]
[1741322183106,34.5124,141.93,141.81,28.54]
[1741322183304,30.12438157,141.92,141.81,28.54]
[1741322183507,7.0483,141.88,141.81,28.54]
[1741322183707,28.54,141.91,141.81,28.54]
[1741322183905,0.04556866,141.86,141.83,0.05177618]
[1741322184510,0.04556866,141.86,141.83,7.10187618]
[1741322185313,410.67229834,141.97,141.83,33.69615775]
[1741322185510,78.22329492,141.96,141.83,30.12438157]
[1741322186020,7.0459,141.93,141.86,30.12438157]
[1741322186216,7.0459,141.93,141.87,30.501]
[1741322186416,7.0459,141.93,141.88,0.04865185]
[1741322186417,0.04455156,141.91,141.88,0.04865185]
[1741322187719,0.04455156,141.91,141.88,7.09625185]
[1741322187924,0.04455156,141.91,141.88,0.04865185]
[1741322188114,7.045,141.95,141.9,7.047]
[1741322188315,5.7903,141.98,141.91,28.46]
[1741322188515,12.8338,141.98,141.92,7.0458]
[1741322188715,5.7903,141.98,141.91,28.46]
[1741322189220,0.04458015,141.96,141.93,0.04549956]
[1741322189422,7.0446,141.95,141.93,0.04549956]
[1741322191018,7.08868015,141.96,141.93,0.04549956]
[1741322191218,0.04458015,141.96,141.93,0.04549956]
[1741322195220,58.50438157,142.03,141.93,0.04549956]
[1741322195421,58.50438157,142.03,141.92,30.12438157]
[1741322195618,7.0431,141.98,141.92,30.12438157]
[1741322195824,30.12438157,142.03,141.92,30.12438157]
[1741322196230,7.0438,141.97,141.96,0.05378363]
[1741322196529,32.07238157,142.03,141.96,0.05378363]
[1741322196921,7.0434,141.98,141.96,0.05378363]
[1741322197126,1.948,142.03,141.96,0.05378363]
[1741322197522,7.0416,142.01,141.96,0.05378363]
[1741322199030,7.0416,142.01,141.96,7.09778363]
[1741322200432,7.0422,142.0,141.96,0.05378363]
[1741322201730,7.0427,141.99,141.96,0.05378363]
[1741322201931,7.0427,141.99,141.95,28.42]
[1741322202233,7.0436,141.97,141.96,0.04463459]
[1741322202425,28.26,142.01,141.92,28.26]
[1741322202626,28.26,142.01,141.95,0.05362479]
[1741322202627,18.76407087,141.99,141.95,0.05362479]
[1741322203531,7.044,141.96,141.95,0.05362479]
[1741322204927,1.8664,141.98,141.9,28.22]
[1741322205135,7.0457,141.93,141.9,28.22]
[1741322205433,31.88916549,141.98,141.89,28.2]
[1741322205622,28.2,141.97,141.89,28.2]
[1741322206130,7.0464,141.92,141.89,28.2]
[1741322206527,0.0519986,141.94,141.89,28.24981382]
[1741322206728,7.047,141.9,141.89,0.04981382]
[1741322210334,0.04563116,141.91,141.82,28.16]
[1741322210638,1.9434,141.92,141.82,28.16]
[1741322210939,1.9434,141.92,141.82,35.211]
[1741322211437,0.05142969,141.88,141.86,0.04944148]
[1741322212534,7.0485,141.87,141.86,0.04944148]
[1741322213138,7.09952969,141.88,141.86,0.04944148]
[1741322214041,0.05142969,141.88,141.86,0.04944148]
[1741322215043,7.09942969,141.88,141.86,0.04944148]
[1741322215340,0.05142969,141.88,141.86,0.04944148]
[1741322215537,7.09952969,141.88,141.86,0.04944148]
[1741322216434,7.0485,141.87,141.86,0.04944148]
[1741322216832,0.05142969,141.88,141.86,0.04944148]
[1741322217034,7.09962969,141.88,141.86,0.04944148]
[1741322220338,0.05142969,141.88,141.86,0.04944148]
[1741322220543,7.0485,141.87,141.86,0.04944148]
[1741322221245,0.05142969,141.88,141.86,0.04944148]
[1741322221450,7.09962969,141.88,141.86,0.04944148]
[1741322221745,0.05142969,141.88,141.86,0.04944148]
[1741322223050,7.0498,141.85,141.8,57.94276549]
[1741322223246,7.0498,141.85,141.8,37.07456549]
[1741322223445,1.8604,141.87,141.8,57.94276549]
[1741322223746,1.8604,141.87,141.8,30.02276549]
[1741322223947,1.8604,141.87,141.78,27.92]
[1741322224249,0.04856248,141.85,141.82,0.05261426]
[1741322225048,7.0505,141.83,141.82,0.05261426]
[1741322226751,7.0505,141.83,141.79,18.7935684]
[1741322226949,7.051,141.82,141.79,18.7935684]
[1741322227253,0.04856248,141.85,141.79,18.7935684]
[1741322227254,27.84,141.85,141.79,18.7935684]
[1741322227453,7.0515,141.81,141.79,18.7935684]
[1741322227650,27.84,141.85,141.75,232.58]
[1741322227651,27.84,141.85,141.77,18.7935684]
[1741322227957,0.04876226,141.82,141.8,0.04735071]
[1741322229157,7.0515,141.81,141.8,0.04735071]
[1741322231462,0.04876226,141.82,141.8,18.84091911]
[1741322231854,0.04876226,141.82,141.8,46.62091911]
[1741322232563,0.04876226,141.82,141.81,7.0515]
[1741322233261,29.6542,141.92,141.81,18.7935684]
[1741322233565,33.5923,141.92,141.85,18.7935684]
[1741322234253,0.04797242,141.9,141.87,0.04785516]
[1741322234459,7.09517242,141.9,141.87,0.04785516]
[1741322234859,0.04797242,141.9,141.87,0.04785516]
[1741322235163,7.0475,141.89,141.87,0.04785516]
[1741322235462,0.04797242,141.9,141.87,0.04785516]
[1741322235667,7.09507242,141.9,141.87,0.04785516]
[1741322235963,0.04797242,141.9,141.87,0.04785516]
[1741322236859,7.048,141.88,141.87,0.04785516]
[1741322237059,0.04797242,141.9,141.84,27.78]
[1741322237859,7.0491,141.86,141.84,27.78]
[1741322238063,7.0491,141.86,141.81,46.6535684]
[1741322238269,7.09475609,141.86,141.84,0.04591578]
[1741322238470,7.0495,141.85,141.84,0.04591578]
[1741322240067,0.04565609,141.86,141.79,18.7935684]
[1741322240869,0.04565609,141.86,141.78,27.84]
[1741322241069,0.04565609,141.86,141.81,0.04987182]
[1741322241268,27.84,141.88,141.81,0.04987182]
[1741322241571,0.05002256,141.85,141.81,0.04987182]
[1741322242371,7.0504,141.84,141.81,0.04987182]
[1741322243171,7.051,141.83,141.81,0.04987182]
[1741322245475,7.0501,141.84,141.81,0.04987182]
[1741322246379,7.0509,141.83,141.81,0.04987182]
[1741322246675,0.05002256,141.85,141.81,0.04987182]
[1741322246881,7.051,141.82,141.81,0.04987182]
[1741322247575,0.05002256,141.85,141.81,0.04987182]
[1741322248274,7.0505,141.83,141.81,0.04987182]
[1741322249874,7.051,141.82,141.81,0.04987182]
[1741322255367,7.0501,141.84,141.81,0.04987182]
[1741322255569,0.05002256,141.85,141.81,0.04987182]
[1741322255974,7.0503,141.84,141.81,0.04987182]
[1741322256482,7.051,141.82,141.81,0.04987182]
[1741322257690,7.0545,141.76,141.73,20.7990684]
[1741322257876,46.3935684,141.83,141.73,18.7935684]
[1741322258787,0.04790089,141.79,141.77,0.05268051]
[1741322258979,7.053,141.78,141.77,0.05268051]
[1741322259180,0.04790089,141.79,141.77,0.05268051]
[1741322263085,0.04790089,141.79,141.77,18.84624891]
[1741322263987,0.04790089,141.79,141.77,0.05268051]
[1741322264982,0.04790089,141.79,141.78,18.7935684]
[1741322266587,0.04790089,141.79,141.77,0.05268051]
[1741322267287,7.10040089,141.79,141.77,0.05268051]
[1741322268687,7.053,141.78,141.77,0.05268051]
[1741322271092,7.0551,141.74,141.72,18.7935684]
[1741322271392,5.8483,141.8,141.72,18.7935684]
[1741322271689,7.0546,141.75,141.72,18.7935684]
[1741322272093,7.10221819,141.75,141.72,18.84157016]
[1741322275794,0.04761819,141.75,141.72,18.84157016]
[1741322276797,0.04761819,141.75,141.72,0.04800176]
[1741322277294,7.0555,141.73,141.72,0.04800176]
[1741322279194,0.04761819,141.75,141.72,0.04800176]
[1741322280489,7.10211819,141.75,141.72,0.04800176]
[1741322281091,7.0552,141.74,141.72,0.04800176]
[1741322281493,0.04761819,141.75,141.72,0.04800176]
[1741322281996,7.0555,141.73,141.72,0.04800176]
[1741322282394,0.04761819,141.75,141.72,0.04800176]
[1741322283097,0.04761819,141.75,141.72,7.10390176]
[1741322283299,0.04761819,141.75,141.72,18.84157016]
[1741322283493,0.04761819,141.75,141.72,0.04800176]
[1741322284997,7.0552,141.74,141.72,0.04800176]
[1741322285895,7.0555,141.73,141.72,0.04800176]
[1741322288591,7.0555,141.73,141.66,5.7058]
[1741322288592,7.057,141.7,141.66,24.4993684]
[1741322288788,7.057,141.7,141.66,51.7193684]
[1741322288993,27.24,141.76,141.66,51.7193684]
[1741322289195,7.057,141.7,141.66,51.7193684]
[1741322289597,27.24,141.76,141.66,58.7783684]
[1741322289806,0.04804224,141.69,141.67,0.0478504]
[1741322290101,7.0568,141.71,141.66,51.7193684]
[1741322290400,0.04586414,141.69,141.67,0.04615225]
[1741322291598,0.04586414,141.69,141.67,7.10425225]
[1741322294401,0.04586414,141.69,141.68,7.058]
[1741322294699,0.04586414,141.69,141.68,25.8515684]
[1741322295002,0.04586414,141.69,141.68,18.7935684]
[1741322295201,0.04586414,141.69,141.67,0.04615225]
[1741322298305,0.04586414,141.69,141.67,7.10445225]
[1741322300203,0.04586414,141.69,141.67,0.04615225]
[1741322300506,0.04586414,141.69,141.68,25.8515684]
[1741322300707,39.6689463,141.8,141.68,18.7935684]
[1741322301011,7.0538,141.77,141.7,18.7935684]
[1741322301306,7.0538,141.77,141.72,7.0556]
[1741322301696,26.96,141.79,141.71,26.96]
[1741322301902,0.05157353,141.76,141.73,0.04552383]
[1741322302299,7.0548,141.75,141.73,0.04552383]
[1741322302706,0.05157353,141.76,141.73,0.04552383]
[1741322303214,7.10567353,141.76,141.73,0.04552383]
[1741322303804,0.05157353,141.76,141.73,0.04552383]
[1741322304111,7.0549,141.75,141.73,0.04552383]
[1741322304306,0.05157353,141.76,141.73,0.04552383]
[1741322306605,7.055,141.74,141.73,0.04552383]
[1741322309119,7.0568,141.71,141.69,12.04402056]
[1741322309410,40.94032056,141.74,141.69,12.04402056]
[1741322309612,40.94032056,141.74,141.67,12.04402056]
[1741322310221,0.05145378,141.72,141.69,0.05260021]
[1741322310514,7.0565,141.71,141.69,0.05260021]
[1741322310712,0.05145378,141.72,141.69,0.05260021]
[1741322312108,7.0568,141.71,141.69,0.05260021]
[1741322312815,7.0565,141.71,141.69,0.05260021]
[1741322313018,0.05145378,141.72,141.69,0.05260021]
[1741322313414,7.057,141.7,141.69,0.05260021]
[1741322327938,0.05145378,141.72,141.69,0.05260021]
[1741322328234,0.05145378,141.72,141.7,38.64402056]
[1741322328434,0.05145378,141.72,141.71,7.0565]
[1741322329036,0.05145378,141.72,141.7,38.64402056]
[1741322331927,0.05145378,141.72,141.71,7.0565]
[1741322332833,0.05145378,141.72,141.7,38.64402056]
[1741322334232,0.05145378,141.72,141.7,45.70092056]
[1741322334534,0.05145378,141.72,141.7,38.64402056]
[1741322335439,0.05145378,141.72,141.7,45.70062056]
[1741322338142,0.05145378,141.72,141.71,7.0565]
[1741322339143,0.05145378,141.72,141.7,38.64402056]
[1741322344137,0.05145378,141.72,141.7,12.04402056]
[1741322347243,0.05145378,141.72,141.7,19.10092056]
[1741322348655,0.05145378,141.72,141.7,12.04402056]
[1741322350253,0.05145378,141.72,141.7,19.10082056]
[1741322350653,0.05145378,141.72,141.7,12.04402056]
[1741322352558,7.10745378,141.72,141.7,12.04402056]
[1741322353761,7.057,141.7,141.69,0.05260021]
[1741322356461,0.05145378,141.72,141.69,0.05260021]
[1741322357463,0.05145378,141.72,141.7,12.04402056]
[1741322367061,0.05145378,141.72,141.7,19.10092056]
[1741322367570,0.05145378,141.72,141.7,12.04402056]
[1741322368368,0.05145378,141.72,141.7,19.10052056]
[1741322369062,0.05145378,141.72,141.71,7.0565]
[1741322369962,7.0537,141.77,141.72,7.0558]
[1741322370162,7.0537,141.77,141.74,12.04402056]
[1741322371169,7.10245847,141.77,141.74,12.09046712]
[1741322372670,7.0541,141.76,141.74,12.09046712]
[1741322373468,7.10245847,141.77,141.74,12.09046712]
[1741322373772,0.04875847,141.77,141.74,12.09046712]
[1741322375369,0.04875847,141.77,141.74,19.14536712]
[1741322375573,0.04875847,141.77,141.74,12.09046712]
[1741322376968,0.04875847,141.77,141.76,12.04402056]
[1741322377172,12.04402056,141.84,141.76,12.04402056]
[1741322377365,12.04402056,141.84,141.71,2.0632]
[1741322377366,12.04402056,141.84,141.79,12.04402056]
[1741322378066,7.0507,141.83,141.79,12.04402056]
[1741322378366,0.05218422,141.82,141.8,0.04939754]
[1741322379073,0.05218422,141.82,141.81,12.04402056]
[1741322379375,0.05218422,141.82,141.81,38.64402056]
[1741322382775,7.0491,141.86,141.81,45.69542056]
[1741322383078,7.0491,141.86,141.83,12.04402056]
[1741322383883,7.09460517,141.86,141.83,12.09704341]
[1741322384073,0.04550517,141.86,141.83,12.09704341]
[1741322384970,0.04550517,141.86,141.83,19.14754341]
[1741322385270,0.04550517,141.86,141.84,26.58]
[1741322387581,7.0495,141.85,141.84,26.58]
[1741322388075,7.0495,141.85,141.83,12.09704341]
[1741322388981,0.04550517,141.86,141.83,12.09704341]
[1741322389683,7.0496,141.85,141.83,12.09704341]
[1741322389979,0.04550517,141.86,141.83,0.05302285]
[1741322390175,38.66952573,141.86,141.83,0.05302285]
[1741322390479,12.04402056,141.84,141.79,12.04402056]
[1741322390875,7.0525,141.79,141.78,12.04402056]
[1741322391068,38.62402056,141.82,141.76,12.04402056]
[1741322391782,7.0525,141.79,141.78,0.04804224]
[1741322399282,0.04854058,141.8,141.78,12.0920628]
[1741322399682,0.04854058,141.8,141.78,38.6720628]
[1741322400088,0.00041708,141.8,141.78,38.6720628]
[1741322401390,0.00041708,141.8,141.79,7.0525]
[1741322401686,0.00041708,141.8,141.78,38.6720628]
[1741322401889,7.05241708,141.8,141.78,38.6720628]
[1741322402190,0.00041708,141.8,141.78,12.0920628]
[1741322402787,0.00041708,141.8,141.78,0.04804224]
[1741322403589,7.0525,141.79,141.78,0.04804224]
[1741322404586,7.05261708,141.8,141.78,0.04804224]
[1741322405591,7.0525,141.79,141.78,0.04804224]
[1741322406187,0.00041708,141.8,141.78,0.04804224]
[1741322406394,7.05251708,141.8,141.78,0.04804224]
[1741322407093,0.00041708,141.8,141.79,12.04402056]
[1741322409989,7.05241708,141.8,141.79,12.04402056]
[1741322410287,0.00041708,141.8,141.79,12.04402056]
[1741322410488,0.00041708,141.8,141.79,18.79153228]
[1741322410692,0.00041708,141.8,141.79,25.84403228]
[1741322410891,0.00041708,141.8,141.79,18.79153228]
[1741322413403,26.58,141.86,141.79,18.79153228]
[1741322413597,26.58,141.86,141.81,18.79153228]
[1741322414202,7.0503,141.84,141.81,18.79153228]
[1741322414588,7.10161696,141.84,141.81,18.84487021]
[1741322415604,7.051,141.82,141.81,18.84487021]
[1741322415899,7.051,141.82,141.81,0.05333793]
[1741322416703,0.05131696,141.84,141.81,0.05333793]
[1741322416902,0.05131696,141.84,141.81,25.89637021]
[1741322417202,0.05131696,141.84,141.81,18.84487021]
[1741322417701,7.051,141.82,141.81,18.84487021]
[1741322418001,0.05131696,141.84,141.81,18.84487021]
[1741322418402,7.10151696,141.84,141.81,18.84487021]
[1741322418808,0.05131696,141.84,141.81,18.84487021]
[1741322419706,0.05131696,141.84,141.81,25.89597021]
[1741322421101,0.05131696,141.84,141.82,7.0509]
[1741322422207,0.05131696,141.84,141.83,7.0505]
[1741322422412,0.05131696,141.84,141.83,25.84203228]
[1741322426015,0.05131696,141.84,141.83,52.40203228]
[1741322426710,11.1391,141.91,141.87,7.0485]
[1741322427016,11.1391,141.91,141.87,25.84003228]
[1741322427216,11.1391,141.91,141.87,18.79153228]
[1741322427828,0.04545059,141.9,141.88,0.04638899]
[1741322429431,0.04545059,141.9,141.88,7.09428899]
[1741322429823,0.04545059,141.9,141.89,18.79153228]
[1741322430025,0.04545059,141.9,141.89,25.83903228]
[1741322430532,7.0441,141.96,141.91,7.0465]
[1741322430829,2.031,141.97,141.92,18.79153228]
[1741322431628,0.05232698,141.96,141.93,0.05175345]
[1741322431829,0.05232698,141.96,141.94,18.79153228]
[1741322432831,0.05232698,141.96,141.95,26.56]
[1741322436133,0.05232698,141.96,141.93,0.05175345]
[1741322437135,0.05232698,141.96,141.94,18.79153228]
[1741322437725,7.09642698,141.96,141.94,18.79153228]
[1741322437939,0.05232698,141.96,141.93,0.05175345]
[1741322438239,7.09652698,141.96,141.93,0.05175345]
[1741322438427,0.05232698,141.96,141.93,0.05175345]
[1741322439334,7.045,141.94,141.93,0.05175345]
[1741322440338,7.0469,141.91,141.88,45.33153228]
[1741322440533,3.9414,141.95,141.88,12.0153065]
[1741322440534,12.0153065,141.94,141.88,12.0153065]
[1741322440838,12.0153065,141.92,141.86,12.0153065]
[1741322441038,1.9365,141.91,141.86,12.0153065]
[1741322441432,0.04578079,141.9,141.88,12.0153065]
[1741322442431,7.0475,141.89,141.88,12.0153065]
[1741322442739,7.0475,141.89,141.87,0.04487281]
[1741322443238,7.048,141.88,141.87,0.04487281]
[1741322449039,3.52,141.88,141.8,18.77802403]
[1741322449239,1.8603,141.87,141.79,18.77802403]
[1741322449439,26.54,141.86,141.79,18.77802403]
[1741322450143,0.04808352,141.84,141.81,0.0493398]
[1741322451742,7.0509,141.83,141.81,0.0493398]
[1741322451933,0.04808352,141.84,141.81,0.0493398]
[1741322453537,7.09818352,141.84,141.81,0.0493398]
[1741322454044,0.04808352,141.84,141.81,0.0493398]
[1741322454233,7.051,141.82,141.81,0.0493398]
[1741322455238,0.04808352,141.84,141.81,0.0493398]
[1741322455442,7.0507,141.83,141.81,0.0493398]
[1741322455838,7.051,141.82,141.81,0.0493398]
[1741322456949,0.04808352,141.84,141.81,0.0493398]
[1741322457246,0.04808352,141.84,141.82,18.77802403]
[1741322457951,0.04808352,141.84,141.81,0.0493398]
[1741322458351,7.051,141.82,141.81,0.0493398]
[1741322462646,26.60808352,141.84,141.81,0.0493398]
[1741322462846,0.04808352,141.84,141.82,18.77802403]
[1741322463354,0.04808352,141.84,141.81,0.0493398]
[1741322464347,7.09828352,141.84,141.81,0.0493398]
[1741322464541,0.04808352,141.84,141.81,0.0493398]
[1741322464953,7.09828352,141.84,141.81,0.0493398]
[1741322465958,0.04808352,141.84,141.81,0.0493398]
[1741322466553,7.051,141.82,141.81,0.0493398]
[1741322469959,0.04808352,141.84,141.81,18.82736383]
[1741322470662,7.09838352,141.84,141.83,12.0250958]
[1741322471258,7.051,141.82,141.81,12.0744356]
[1741322474164,0.04808352,141.84,141.81,12.0744356]
[1741322474368,0.04808352,141.84,141.81,0.0493398]
[1741322474661,26.56,141.83,141.81,0.0493398]
[1741322474858,7.051,141.82,141.81,0.0493398]
[1741322475655,7.0532,141.78,141.77,12.0250958]
[1741322476871,0.05339261,141.79,141.77,12.0250958]
[1741322478366,7.10599261,141.79,141.77,12.0250958]
[1741322479875,0.05339261,141.79,141.77,12.0250958]
[1741322480174,7.053,141.78,141.77,12.0250958]
[1741322481469,0.05339261,141.79,141.77,12.0250958]
[1741322482475,7.10589261,141.79,141.77,12.0250958]
[1741322482676,0.05339261,141.79,141.77,12.0250958]
[1741322483478,7.053,141.78,141.77,12.0250958]
[1741322483672,0.05339261,141.79,141.77,12.0250958]
[1741322484074,7.10619261,141.79,141.77,12.0250958]
[1741322485073,7.053,141.78,141.77,12.0250958]
[1741322490183,0.05339261,141.79,141.77,12.0250958]
[1741322490374,7.10599261,141.79,141.77,12.0250958]
[1741322490681,0.05339261,141.79,141.77,12.0250958]
[1741322491479,7.053,141.78,141.77,12.0250958]
[1741322494586,7.0535,141.77,141.76,0.046473]
[1741322495983,7.055,141.74,141.73,12.0250958]
[1741322498589,7.09895984,141.75,141.73,12.0250958]
[1741322498784,0.04435984,141.75,141.73,12.0250958]
[1741322499284,0.04435984,141.75,141.73,19.0804958]
[1741322499885,0.04435984,141.75,141.73,12.0250958]
[1741322502691,7.09915984,141.75,141.73,12.0250958]
[1741322502992,0.04435984,141.75,141.73,12.0250958]
[1741322504491,0.04435984,141.75,141.73,19.0802958]
[1741322505987,0.04435984,141.75,141.74,7.055]
[1741322506489,0.04435984,141.75,141.73,12.0250958]
[1741322507393,0.04435984,141.75,141.73,19.0803958]
[1741322508091,0.04435984,141.75,141.73,12.0250958]
[1741322508292,0.04435984,141.75,141.74,7.055]
[1741322514996,0.04435984,141.75,141.73,45.6403958]
[1741322515290,0.04435984,141.75,141.73,38.5850958]
[1741322515495,0.04435984,141.75,141.72,0.05166637]
[1741322515690,7.0553,141.74,141.72,0.05166637]
[1741322516788,0.04435984,141.75,141.72,0.05166637]
[1741322516989,7.0555,141.73,141.72,0.05166637]
[1741322522403,0.04435984,141.75,141.72,0.05166637]
[1741322523006,7.0555,141.73,141.72,0.05166637]
[1741322530902,7.0585,141.67,141.64,12.0250958]
[1741322531301,38.5850958,141.7,141.64,12.0250958]
[1741322531520,7.0583,141.68,141.64,12.0250958]
[1741322531705,38.5850958,141.7,141.64,12.0250958]
[1741322532212,7.0589,141.67,141.66,0.04915345]
[1741322532901,0.04551178,141.68,141.66,12.07424925]
[1741322534908,2.0453,141.74,141.67,26.56]
[1741322535209,38.5850958,141.77,141.71,12.0250958]
[1741322535404,26.56,141.77,141.71,12.0250958]
[1741322535609,7.0548,141.75,141.71,12.0250958]
[1741322535804,12.0250958,141.77,141.71,38.5850958]
[1741322536011,0.05345202,141.74,141.72,0.0521532]
[1741322536512,0.05345202,141.74,141.73,12.0250958]
[1741322537206,0.05345202,141.74,141.73,19.0805958]
[1741322543417,0.05345202,141.74,141.73,7.0555]
[1741322543618,0.05345202,141.74,141.73,12.0250958]
[1741322544313,0.05345202,141.74,141.73,19.0805958]
[1741322547923,4.0657,141.82,141.73,12.0250958]
[1741322548122,7.0516,141.81,141.77,19.0782958]
[1741322548312,7.0516,141.81,141.79,12.0250958]
[1741322548515,2.0525,141.82,141.79,12.0250958]
[1741322549019,12.0250958,141.81,141.77,26.54]
[1741322549322,7.052,141.8,141.79,0.04702856]
[1741322549522,16.0059958,141.81,141.75,12.0250958]
[1741322549722,7.0543,141.76,141.74,26.54]
[1741322550121,12.0250958,141.79,141.73,12.0250958]
[1741322550316,7.0542,141.76,141.73,12.0250958]
[1741322550711,7.10594306,141.76,141.73,12.07656638]
[1741322551117,0.05174306,141.76,141.73,12.07656638]